bitfinex-derivatives/quotes_BTCF0:USTF0_20260107
["timestamp","ask_amount","ask_price","bid_price","bid_amount"]
[1767747225140,0.01833533,93073.0,93057.0,0.10970119]
[1767747225337,0.1999399,93077.0,93057.0,0.01075]
[1767747225338,0.1891919,93076.0,93057.0,0.01075]
[1767747225545,0.18715279,93075.0,93060.0,0.09093741]
[1767747225748,0.09571279,93074.0,93060.0,0.09093741]
[1767747226043,0.11383346,93074.0,93060.0,0.09093741]
[1767747226848,0.20527346,93074.0,93060.0,0.09093741]
[1767747227043,0.01812067,93074.0,93061.0,0.09994178]
[1767747227251,0.19789879,93095.0,93072.0,0.19889297]
[1767747227434,0.18715279,93095.0,93079.0,0.09093741]
[1767747227640,0.02022688,93089.0,93076.0,0.010748]
[1767747227953,0.02022688,93089.0,93079.0,0.09093741]
[1767747228249,0.18934474,93098.0,93079.0,0.09093741]
[1767747228250,0.09571279,93101.0,93081.0,0.010748]
[1767747228440,0.1891919,93098.0,93081.0,0.010748]
[1767747228748,0.1891919,93098.0,93084.0,0.010747]
[1767747228934,0.09144,93100.0,93088.0,0.09093741]
[1767747229139,0.01838128,93101.0,93086.0,0.010747]
[1767747229340,0.09144,93102.0,93083.0,0.010747]
[1767747229548,0.09144,93102.0,93080.0,0.19087919]
[1767747229742,0.09144,93102.0,93083.0,0.010747]
[1767747229940,0.18715279,93102.0,93083.0,0.010747]
[1767747230547,0.01850626,93103.0,93086.0,0.010747]
[1767747230733,0.09347911,93104.0,93088.0,0.010747]
[1767747230940,0.09347911,93104.0,93085.0,0.010747]
[1767747231249,0.11183466,93104.0,93085.0,0.010747]
[1767747231841,0.11183466,93104.0,93090.0,0.09093741]
[1767747232043,0.01835555,93104.0,93090.0,0.09093741]
[1767747232248,0.09144,93105.0,93090.0,0.09093741]
[1767747232948,0.09571279,93106.0,93090.0,0.09093741]
[1767747233162,0.09144,93106.0,93090.0,0.09093741]
[1767747233343,0.01845814,93106.0,93096.0,0.09093741]
[1767747233544,0.09144,93110.0,93096.0,0.09093741]
[1767747233852,0.10645679,93113.0,93100.0,0.09093741]
[1767747234049,0.09144,93114.0,93100.0,0.09093741]
[1767747234354,0.19789679,93114.0,93100.0,0.09093741]
[1767747234654,0.19789679,93114.0,93094.0,0.09994178]
[1767747234839,0.09571279,93110.0,93088.0,0.09994178]
[1767747235039,0.09144,93114.0,93072.0,0.09144]
[1767747235040,0.1891919,93094.0,93072.0,0.09144]
[1767747235241,0.09571279,93093.0,93072.0,0.09144]
[1767747235444,0.09571279,93099.0,93073.0,0.09895119]
[1767747235650,0.09571279,93099.0,93076.0,0.09895119]
[1767747235854,0.09571279,93099.0,93081.0,0.010748]
[1767747236446,0.09571279,93099.0,93083.0,0.010747]
[1767747236649,0.09144,93100.0,93087.0,0.010747]
[1767747236851,0.1891919,93106.0,93087.0,0.010747]
[1767747237154,0.18711279,93105.0,93087.0,0.010747]
[1767747237450,0.09347911,93102.0,93081.0,0.09895119]
[1767747237645,0.09571279,93106.0,93083.0,0.19889297]
[1767747237851,0.0914,93102.0,93083.0,0.19889297]
[1767747238055,0.010744,93112.0,93092.0,0.010746]
[1767747238250,0.11217942,93114.0,93086.0,0.010747]
[1767747238251,0.09098404,93104.0,93086.0,0.010747]
[1767747238459,0.18280478,93100.0,93082.0,0.010748]
[1767747238646,0.09098404,93097.0,93082.0,0.010748]
[1767747238846,0.09098404,93097.0,93079.0,0.102148]
[1767747239448,0.09098404,93096.0,93079.0,0.0914]
[1767747239755,0.010747,93087.0,93077.0,0.0914]
[1767747239955,0.09098404,93089.0,93071.0,0.010749]
[1767747240549,0.09098404,93089.0,93070.0,0.0914]
[1767747241455,0.09098404,93089.0,93070.0,0.102149]
[1767747242058,0.18514425,93078.0,93055.0,0.09942357]
[1767747242262,0.09290254,93075.0,93058.0,0.01075]
[1767747242449,0.09290254,93074.0,93055.0,0.010751]
[1767747242651,0.09290254,93071.0,93055.0,0.010751]
[1767747242855,0.09290254,93070.0,93052.0,0.0914]
[1767747243668,0.09290254,93076.0,93054.0,0.09942357]
[1767747243862,0.19589225,93080.0,93056.0,0.09942357]
[1767747244165,0.09290254,93079.0,93056.0,0.09942357]
[1767747244752,0.10365054,93078.0,93060.0,0.01075]
[1767747244952,0.09290254,93091.0,93064.0,0.09817174]
[1767747245158,0.09290254,93083.0,93063.0,0.10215]
[1767747245358,0.09290254,93083.0,93066.0,0.010749]
[1767747246062,0.09290254,93080.0,93063.0,0.10215]
[1767747246556,0.09290254,93080.0,93063.0,0.0914]
[1767747246764,0.09290254,93080.0,93067.0,0.010749]
[1767747248168,0.09224171,93086.0,93069.0,0.010749]
[1767747248559,0.09290254,93087.0,93069.0,0.010749]
[1767747249666,0.09290254,93087.0,93071.0,0.010749]
[1767747251467,0.18514425,93084.0,93071.0,0.010749]
[1767747252366,0.18514425,93084.0,93068.0,0.010749]
[1767747255060,0.18514425,93083.0,93068.0,0.010749]
[1767747257468,0.09290254,93082.0,93068.0,0.010749]
[1767747258563,0.09224171,93087.0,93064.0,0.09942357]
[1767747258759,0.18514425,93087.0,93072.0,0.010749]
[1767747259471,0.09290254,93087.0,93072.0,0.010749]
[1767747259673,0.09290254,93087.0,93074.0,0.010748]
[1767747260559,0.09290254,93087.0,93067.0,0.09942357]
[1767747260764,0.09290254,93087.0,93068.0,0.09942357]
[1767747260960,0.09224171,93091.0,93070.0,0.19759531]
[1767747261173,0.18364171,93099.0,93085.0,0.010747]
[1767747261364,0.09224171,93098.0,93076.0,0.19759531]
[1767747261564,0.09224171,93098.0,93084.0,0.010747]
[1767747261767,0.010745,93100.0,93084.0,0.010747]
[1767747261966,0.010745,93100.0,93073.0,0.0914]
[1767747261967,0.18364171,93102.0,93083.0,0.09942357]
[1767747262866,0.09224171,93102.0,93090.0,0.010747]
[1767747263178,0.0914,93105.0,93090.0,0.010747]
[1767747263369,0.010745,93104.0,93086.0,0.010747]
[1767747263674,0.09224171,93103.0,93086.0,0.010747]
[1767747263867,0.09224171,93103.0,93087.0,0.7406]
[1767747264263,0.09224171,93108.0,93088.0,0.09942357]
[1767747264464,0.0914,93110.0,93090.0,0.19759531]
[1767747264666,0.09224171,93109.0,93096.0,0.010746]
[1767747264867,0.09224171,93109.0,93093.0,0.010746]
[1767747265067,0.010745,93105.0,93085.0,0.102147]
[1767747265272,0.09224171,93089.0,93076.0,0.0914]
[1767747265572,0.09290254,93090.0,93082.0,0.010748]
[1767747265772,0.18514425,93101.0,93077.0,0.09942357]
[1767747265974,0.18514425,93095.0,93077.0,0.010748]
[1767747266168,0.18514425,93092.0,93072.0,0.010749]
[1767747266476,0.18514425,93092.0,93083.0,0.010747]
[1767747266672,0.09290254,93099.0,93085.0,0.010747]
[1767747267178,0.09224171,93098.0,93085.0,0.010747]
[1767747267378,0.09224171,93095.0,93084.0,0.010747]
[1767747268379,0.09224171,93095.0,93086.0,0.010747]
[1767747269876,0.09224171,93095.0,93085.0,0.010747]
[1767747271981,0.09224171,93095.0,93077.0,0.010748]
[1767747272971,0.09224171,93095.0,93085.0,0.010747]
[1767747273171,0.0971769,93094.0,93085.0,0.010747]
[1767747273369,0.0971769,93094.0,93082.0,0.010748]
[1767747273678,0.0971769,93091.0,93082.0,0.010748]
[1767747277886,0.0971769,93091.0,93084.0,0.010747]
[1767747278189,0.09343041,93092.0,93085.0,0.010747]
[1767747278377,0.09343041,93092.0,93086.0,0.010747]
[1767747278781,0.09343041,93092.0,93087.0,0.7406]
[1767747279181,0.09343041,93092.0,93086.0,0.010747]
[1767747279978,0.09343041,93092.0,93075.0,0.010748]
[1767747279979,0.09343041,93092.0,93083.0,0.010747]
[1767747280882,0.09343041,93092.0,93073.0,0.10153624]
[1767747281088,0.0971769,93094.0,93089.0,0.010747]
[1767747281302,0.0914,93101.0,93089.0,0.010747]
[1767747281583,0.0914,93101.0,93080.0,0.09525092]
[1767747281977,0.010744,93111.0,93085.0,0.09525092]
[1767747282286,0.0914,93110.0,93096.0,0.010746]
[1767747282582,0.0914,93109.0,93096.0,0.010746]
[1767747283173,0.19060731,93111.0,93098.0,0.010746]
[1767747283383,0.0971769,93110.0,93098.0,0.010746]
[1767747283586,0.19060731,93110.0,93096.0,0.010746]
[1767747283787,0.0971769,93109.0,93096.0,0.010746]
[1767747283983,0.24706239,93142.0,93096.0,0.010746]
[1767747284189,0.010744,93111.0,93094.0,0.010746]
[1767747284390,0.0914,93114.0,93092.0,0.010746]
[1767747285084,0.010744,93110.0,93092.0,0.010746]
[1767747285283,0.010744,93110.0,93093.0,0.4]
[1767747286180,0.05571536,93107.0,93093.0,0.4]
[1767747288496,0.05488217,93105.0,93093.0,0.4]
[1767747288694,0.05488217,93099.0,93093.0,0.34511783]
[1767747289296,0.05488217,93099.0,93093.0,0.1418157]
[1767747289794,0.010746,93093.0,93085.0,0.0914]
[1767747290001,0.010746,93095.0,93085.0,0.00896737]
[1767747290195,0.010746,93095.0,93089.0,0.00214849]
[1767747290397,0.010746,93095.0,93076.0,0.02361478]
[1767747290695,0.010746,93095.0,93077.0,0.0914]
[1767747291204,0.010746,93095.0,93078.0,0.010748]
[1767747291792,0.01100009,93095.0,93078.0,0.010748]
[1767747292490,0.00025409,93095.0,93079.0,0.010748]
[1767747293386,0.010746,93094.0,93080.0,0.0914]
[1767747293588,0.010746,93094.0,93077.0,0.09525092]
[1767747293789,0.010746,93094.0,93078.0,0.832]
[1767747294193,0.010746,93094.0,93078.0,0.7406]
[1767747294500,0.010746,93096.0,93079.0,0.0914]
[1767747294694,0.010746,93096.0,93079.0,0.18665092]
[1767747296497,0.010746,93096.0,93080.0,0.09078381]
[1767747297599,0.09317863,93099.0,93080.0,0.09078381]
[1767747297795,0.010746,93099.0,93081.0,0.0914]
[1767747298396,0.010745,93102.0,93089.0,0.09078381]
[1767747298596,0.06994589,93110.0,93090.0,0.09479184]
[1767747298905,0.010745,93105.0,93093.0,0.09479184]
[1767747299498,0.010745,93101.0,93093.0,0.09479184]
[1767747299805,0.010745,93101.0,93091.0,0.0914]
[1767747300399,0.010746,93098.0,93088.0,0.09479184]
[1767747300712,0.010746,93097.0,93082.0,0.09479184]
[1767747301002,0.010746,93097.0,93086.0,0.0914]
[1767747301204,0.010746,93099.0,93086.0,0.0914]
[1767747302392,0.010746,93095.0,93086.0,0.0914]
[1767747302696,0.010746,93097.0,93087.0,0.0914]
[1767747302897,0.010746,93099.0,93087.0,0.0914]
[1767747304908,0.010746,93097.0,93082.0,0.09479184]
[1767747305112,0.010746,93097.0,93083.0,0.0914]
[1767747305409,0.010746,93100.0,93084.0,0.09450685]
[1767747305799,0.010745,93102.0,93085.0,0.09450685]
[1767747306103,0.0914,93112.0,93091.0,0.09450685]
[1767747306104,0.010745,93107.0,93091.0,0.09450685]
[1767747306312,0.010745,93106.0,93091.0,0.09450685]
[1767747307008,0.16164926,93112.0,93091.0,0.09450685]
[1767747307213,0.56164926,93112.0,93091.0,0.09450685]
[1767747307401,0.010745,93104.0,93091.0,0.09450685]
[1767747307602,0.010745,93102.0,93091.0,0.09450685]
[1767747307810,0.010745,93102.0,93088.0,0.07585348]
[1767747308107,0.10646844,93110.0,93090.0,0.09078381]
[1767747308415,0.010745,93103.0,93090.0,0.09078381]
[1767747308800,0.010745,93103.0,93091.0,0.7406]
[1767747309002,0.010745,93106.0,93091.0,0.7406]
[1767747309200,0.10646844,93110.0,93090.0,0.09078381]
[1767747309411,0.01568463,93110.0,93090.0,0.09078381]
[1767747309810,0.01568463,93110.0,93090.0,0.27914828]
[1767747310010,0.01617855,93099.0,93083.0,0.0914]
[1767747310411,0.010745,93105.0,93089.0,0.27914828]
[1767747310710,0.010745,93105.0,93091.0,0.18836447]
[1767747311703,0.010745,93105.0,93092.0,0.09385762]
[1767747313216,0.010745,93105.0,93092.0,0.18836447]
[1767747313814,0.010745,93104.0,93092.0,0.18836447]
[1767747315006,0.010745,93106.0,93092.0,0.18836447]
[1767747315917,0.010745,93106.0,93090.0,0.09078381]
[1767747316217,0.09078381,93110.0,93090.0,0.08436381]
[1767747316816,0.010745,93104.0,93090.0,0.09078381]
[1767747317510,0.010745,93104.0,93083.0,0.0914]
[1767747317710,0.010745,93104.0,93091.0,0.09385762]
[1767747318517,0.010745,93104.0,93093.0,0.09385762]
[1767747318705,0.010745,93106.0,93093.0,0.09385762]
[1767747319312,0.010745,93106.0,93094.0,0.09385762]
[1767747319509,0.102144,93115.0,93097.0,0.09385762]
[1767747320117,0.010745,93103.0,93091.0,0.09450685]
[1767747320302,0.03146621,93109.0,93089.0,0.09385762]
[1767747320501,0.03146621,93108.0,93089.0,0.09385762]
[1767747320706,0.09078381,93100.0,93083.0,0.102147]
[1767747320902,0.09078381,93100.0,93083.0,0.19600462]
[1767747321205,0.09078381,93100.0,93085.0,0.09385762]
[1767747321401,0.010745,93101.0,93085.0,0.09385762]
[1767747321613,0.010745,93101.0,93086.0,0.09385762]
[1767747322912,0.010745,93101.0,93087.0,0.09385762]
[1767747326523,0.010745,93103.0,93087.0,0.09385762]
[1767747326714,0.010745,93103.0,93089.0,0.09385762]
[1767747326912,0.010745,93103.0,93083.0,0.010747]
[1767747327118,0.010745,93103.0,93086.0,0.0914]
[1767747327322,0.010745,93103.0,93086.0,0.18525762]
[1767747327626,0.010745,93103.0,93087.0,0.09385762]
[1767747328226,0.010745,93103.0,93088.0,0.09385762]
[1767747328410,0.010745,93106.0,93088.0,0.09385762]
[1767747328718,0.010745,93106.0,93087.0,0.09182957]
[1767747329224,0.010745,93106.0,93087.0,0.10257657]
[1767747329821,0.010745,93105.0,93087.0,0.09182957]
[1767747330719,0.010745,93105.0,93088.0,0.09385762]
[1767747330921,0.010745,93105.0,93089.0,0.09385762]
[1767747331516,0.19454789,93111.0,93090.0,0.09983747]
[1767747331722,0.18854548,93115.0,93095.0,0.09983747]
[1767747332107,0.0914,93114.0,93100.0,0.19062128]
[1767747332313,0.11003628,93119.0,93105.0,0.09983747]
[1767747332314,0.010744,93117.0,93105.0,0.09983747]
[1767747332524,0.010744,93117.0,93101.0,0.09983747]
[1767747333212,0.010744,93115.0,93101.0,0.09983747]
[1767747333407,0.09201991,93104.0,93084.0,0.010747]
[1767747333626,0.18916539,93104.0,93085.0,0.0914]
[1767747333813,0.18916539,93104.0,93086.0,0.09983747]
[1767747334010,0.10789048,93108.0,93086.0,0.0936279]
[1767747334323,0.10789048,93108.0,93087.0,0.19346537]
[1767747334618,0.10789048,93108.0,93088.0,0.09983747]
[1767747335520,0.09714548,93108.0,93088.0,0.11058447]
[1767747335718,0.18280372,93110.0,93091.0,0.09983747]
[1767747336122,0.09078381,93110.0,93094.0,0.09983747]
[1767747336623,0.09078381,93110.0,93093.0,0.0349103]
[1767747338025,0.10152781,93110.0,93090.0,0.09078381]
[1767747338524,0.19867329,93110.0,93088.0,0.010747]
[1767747338726,0.19867329,93110.0,93089.0,0.09983747]
[1767747339125,0.10788948,93110.0,93090.0,0.010747]
[1767747339426,0.102144,93113.0,93092.0,0.20421137]
[1767747339629,0.010744,93113.0,93093.0,0.19346537]
[1767747339829,0.0914,93115.0,93097.0,0.09983747]
[1767747340219,0.010744,93114.0,93097.0,0.09983747]
[1767747340420,0.0914,93115.0,93097.0,0.09983747]
[1767747343021,0.09078381,93110.0,93097.0,0.09983747]
[1767747343223,0.09078381,93110.0,93093.0,0.09983747]
[1767747343422,0.09714548,93113.0,93097.0,0.7406]
[1767747343724,0.09078381,93110.0,93094.0,0.010746]
[1767747344029,0.09714548,93113.0,93094.0,0.010746]
[1767747344228,0.09078381,93110.0,93095.0,0.19346537]
[1767747344631,0.09078381,93110.0,93095.0,0.00092756]
[1767747344830,0.09078381,93110.0,93090.0,0.09078381]
[1767747345130,0.09201991,93114.0,93090.0,0.09078381]
[1767747345929,0.09201991,93114.0,93097.0,0.010746]
[1767747346121,0.09416771,93119.0,93100.0,0.09078381]
[1767747346328,0.010743,93118.0,93100.0,0.09078381]
[1767747346534,0.010743,93118.0,93098.0,0.010746]
[1767747346721,0.010743,93118.0,93099.0,0.09983747]
[1767747347236,0.010744,93116.0,93099.0,0.09983747]
[1767747347422,0.010744,93114.0,93099.0,0.09983747]
[1767747347624,0.09201991,93108.0,93091.0,0.09983747]
[1767747347927,0.09201991,93108.0,93092.0,0.0914]
[1767747349128,0.09078381,93110.0,93093.0,0.09983747]
[1767747349330,0.18280372,93110.0,93092.0,0.0914]
[1767747349935,0.18280372,93110.0,93094.0,0.010746]
[1767747351134,0.09201991,93110.0,93094.0,0.010746]
[1767747351633,0.09201991,93110.0,93092.0,0.17751421]
[1767747351835,0.09201991,93110.0,93092.0,0.18826021]
[1767747352727,0.09201991,93110.0,93093.0,0.0914]
[1767747353128,0.09201991,93110.0,93094.0,0.010746]
[1767747353920,0.09143354,93110.0,93094.0,0.010746]
[1767747354125,0.09143354,93110.0,93093.0,0.0914]
[1767747355023,0.09143354,93110.0,93093.0,0.102146]
[1767747355334,0.09143354,93110.0,93093.0,0.010746]
[1767747355523,0.09143354,93110.0,93093.0,0.102146]
[1767747355834,0.010744,93115.0,93094.0,0.09983747]
[1767747356022,0.09201991,93116.0,93097.0,0.09983747]
[1767747356924,0.09201991,93116.0,93097.0,0.11058347]
[1767747357328,0.10788948,93117.0,93097.0,0.11058347]
[1767747357329,0.0128908,93119.0,93098.0,0.11058347]
[1767747357531,0.0128908,93119.0,93099.0,0.09983747]
[1767747357837,0.0021478,93119.0,93099.0,0.09983747]
[1767747358026,0.010744,93114.0,93099.0,0.09983747]
[1767747358227,0.010744,93114.0,93097.0,0.0936279]
[1767747358725,0.010744,93114.0,93095.0,0.10295584]
[1767747359236,0.010744,93115.0,93097.0,0.09220984]
[1767747360837,0.010744,93115.0,93096.0,0.0914]
[1767747361020,0.010744,93114.0,93096.0,0.0914]
[1767747361226,0.010744,93116.0,93096.0,0.0914]
[1767747361737,0.0021478,93119.0,93100.0,0.010745]
[1767747361928,0.010744,93115.0,93096.0,0.0914]
[1767747362425,0.08798368,93140.0,93096.0,0.4914]
[1767747362631,0.08798368,93140.0,93112.0,0.010744]
[1767747362632,0.010742,93135.0,93112.0,0.010744]
[1767747362823,0.18784381,93134.0,93113.0,0.08695095]
[1767747363024,0.0914,93139.0,93106.0,0.010745]
[1767747363025,0.0919732,93124.0,93106.0,0.010745]
[1767747363228,0.18784381,93122.0,93106.0,0.0914]
[1767747363533,0.18784381,93119.0,93100.0,0.07620695]
[1767747363735,0.18784381,93106.0,93097.0,0.1164478]
[1767747363928,0.18784381,93102.0,93089.0,0.0914]
[1767747364127,0.18784381,93108.0,93089.0,0.0914]
[1767747364736,0.18784381,93108.0,93090.0,0.08786708]
[1767747365131,0.0919732,93112.0,93090.0,0.07712008]
[1767747365334,0.1833732,93118.0,93098.0,0.08249295]
[1767747365536,0.18784381,93114.0,93091.0,0.07174695]
[1767747365731,0.18784381,93114.0,93094.0,0.010746]
[1767747366542,0.18784381,93114.0,93096.0,0.010746]
[1767747366840,0.09587061,93114.0,93096.0,0.08249295]
[1767747367834,0.09587061,93114.0,93096.0,0.07174695]
[1767747369739,0.09587061,93114.0,93098.0,0.0707482]
[1767747371243,0.0919732,93117.0,93098.0,0.0707482]
[1767747372047,0.010743,93118.0,93098.0,0.0707482]
[1767747372242,0.010743,93118.0,93100.0,0.07185572]
[1767747372930,0.0914,93120.0,93102.0,0.17132678]
[1767747373128,0.0914,93120.0,93103.0,0.07185572]
[1767747373742,0.18784381,93118.0,93099.0,0.16328015]
[1767747374043,0.010744,93117.0,93099.0,0.16328015]
[1767747375244,0.18784381,93118.0,93099.0,0.16328015]
[1767747375446,0.102143,93120.0,93100.0,0.07183087]
[1767747376337,0.102143,93120.0,93102.0,0.07183087]
[1767747376538,0.102143,93120.0,93103.0,0.07183087]
[1767747377142,0.0914,93120.0,93103.0,0.07183087]
[1767747377349,0.0914,93120.0,93104.0,0.07186372]
[1767747378038,0.19858681,93123.0,93104.0,0.07186372]
[1767747378948,0.18784381,93122.0,93104.0,0.07186372]
[1767747379247,0.010743,93123.0,93104.0,0.07186372]
[1767747379452,0.09587061,93118.0,93099.0,0.16328759]
[1767747379644,0.10661361,93118.0,93099.0,0.16328759]
[1767747380241,0.10661361,93118.0,93100.0,0.07188759]
[1767747382047,0.18784381,93111.0,93099.0,0.0914]
[1767747382247,0.09587061,93111.0,93099.0,0.0914]
[1767747382646,0.1027172,93115.0,93099.0,0.0914]
[1767747382846,0.0919732,93115.0,93099.0,0.0914]
[1767747383149,0.09587061,93116.0,93099.0,0.0914]
[1767747383547,0.09587061,93121.0,93102.0,0.17123654]
[1767747383750,0.09587061,93131.0,93115.0,0.010744]
[1767747383956,0.09587061,93137.0,93123.0,0.010743]
[1767747384251,0.01832429,93142.0,93125.0,0.08250848]
[1767747384438,0.09587061,93148.0,93127.0,0.08250748]
[1767747384638,0.09587061,93148.0,93127.0,0.07176548]
[1767747384847,0.18784381,93144.0,93126.0,0.0914]
[1767747385055,0.18784381,93144.0,93100.0,0.09075017]
[1767747385056,0.18784381,93138.0,93115.0,0.010744]
[1767747385243,0.09587061,93134.0,93117.0,0.06991985]
[1767747385554,0.19858481,93139.0,93118.0,0.16131985]
[1767747385750,0.18784381,93134.0,93118.0,0.0914]
[1767747385951,0.09587061,93129.0,93119.0,0.0914]
[1767747386154,0.0919732,93126.0,93105.0,0.06991985]
[1767747386450,0.09587061,93124.0,93106.0,0.0914]
[1767747386846,0.09587061,93133.0,93106.0,0.0914]
[1767747387036,0.18784381,93132.0,93112.0,0.010744]
[1767747387241,0.18784381,93132.0,93114.0,0.010744]
[1767747388652,0.18784381,93132.0,93116.0,0.010744]
[1767747388841,0.09587061,93132.0,93117.0,0.0914]
[1767747389552,0.18784381,93123.0,93111.0,0.0914]
[1767747389745,0.09587061,93121.0,93111.0,0.0914]
[1767747390764,0.09587061,93121.0,93111.0,0.0661]
[1767747391642,0.09384904,93127.0,93111.0,0.0661]
[1767747391947,0.18538279,93127.0,93111.0,0.0661]
[1767747392345,0.18538279,93129.0,93111.0,0.0661]
[1767747392555,0.18538279,93126.0,93111.0,0.0661]
[1767747392857,0.09384904,93125.0,93112.0,0.0914]
[1767747393055,0.09384904,93125.0,93113.0,0.0914]
[1767747394242,0.010741,93139.0,93113.0,0.0914]
[1767747394243,0.010742,93131.0,93114.0,0.07016165]
[1767747394448,0.09384904,93124.0,93113.0,0.0914]
[1767747395461,0.09384904,93124.0,93105.0,0.07016165]
[1767747395655,0.09384904,93124.0,93106.0,0.09136]
[1767747396158,0.09384904,93124.0,93106.0,0.102105]
[1767747396455,0.09384904,93124.0,93106.0,0.17169196]
[1767747396656,0.09384904,93124.0,93107.0,0.06958696]
[1767747397457,0.09384904,93129.0,93109.0,0.07044625]
[1767747397857,0.09384904,93128.0,93109.0,0.07044625]
[1767747398963,0.09384904,93134.0,93112.0,0.09325008]
[1767747399257,0.09384904,93134.0,93113.0,0.07044625]
[1767747399761,0.09384904,93134.0,93117.0,0.07047285]
[1767747399964,0.09384904,93134.0,93118.0,0.16183285]
[1767747400164,0.09384904,93140.0,93119.0,0.08121585]
[1767747400460,0.09384904,93139.0,93119.0,0.08121585]
[1767747400960,0.09384904,93139.0,93120.0,0.09136]
[1767747401155,0.09384904,93139.0,93120.0,0.102103]
[1767747401355,0.010741,93138.0,93120.0,0.09136]
[1767747401660,0.09384904,93139.0,93120.0,0.09136]
[1767747401860,0.09384904,93139.0,93121.0,0.7406]
[1767747402262,0.10459004,93138.0,93120.0,0.09136]
[1767747403373,0.09384904,93138.0,93120.0,0.09136]
[1767747403573,0.10459004,93137.0,93120.0,0.09136]
[1767747403770,0.09384904,93130.0,93113.0,0.010744]
[1767747403974,0.09153375,93126.0,93108.0,0.010745]
[1767747404176,0.09384904,93125.0,93109.0,0.010744]
[1767747404675,0.09384904,93125.0,93110.0,0.09136]
[1767747404868,0.09384904,93125.0,93111.0,0.010744]
[1767747405076,0.09384904,93125.0,93112.0,0.09136]
[1767747405275,0.09384904,93125.0,93113.0,0.010744]
[1767747405465,0.09153375,93130.0,93115.0,0.010744]
[1767747405667,0.09384904,93131.0,93115.0,0.010744]
[1767747405874,0.09384904,93138.0,93117.0,0.010743]
[1767747406075,0.18538279,93138.0,93117.0,0.00430207]
[1767747406273,0.09384904,93136.0,93118.0,0.09136]
[1767747406476,0.10459004,93136.0,93118.0,0.09136]
[1767747406676,0.09384904,93135.0,93118.0,0.09136]
[1767747406975,0.18538279,93133.0,93118.0,0.09136]
[1767747407178,0.09384904,93132.0,93118.0,0.09136]
[1767747407480,0.18538279,93110.0,93075.0,0.010748]
[1767747407778,0.09384904,93102.0,93088.0,0.010747]
[1767747407974,0.09136,93101.0,93088.0,0.010747]
[1767747408572,0.09384904,93102.0,93088.0,0.010747]
[1767747408972,0.18520904,93102.0,93084.0,0.10471041]
[1767747409281,0.09384904,93102.0,93084.0,0.09396341]
[1767747409482,0.09384904,93098.0,93077.0,0.010748]
[1767747409683,0.09384904,93097.0,93077.0,0.010748]
[1767747409982,0.09384904,93095.0,93074.0,0.010748]
[1767747410178,0.09384904,93092.0,93073.0,0.09136]
[1767747410381,0.09384904,93091.0,93073.0,0.09136]
[1767747411185,0.010747,93086.0,93065.0,0.010749]
[1767747411373,0.09384904,93085.0,93065.0,0.010749]
[1767747412281,0.09153375,93084.0,93065.0,0.010749]
[1767747412481,0.09384904,93083.0,93065.0,0.010749]
[1767747413376,0.10459704,93082.0,93063.0,0.09136]
[1767747414074,0.09153375,93079.0,93031.0,0.09396341]
[1767747414382,0.08686552,93082.0,93044.0,0.09396341]
[1767747414383,0.18538279,93068.0,93044.0,0.09396341]
[1767747414882,0.09384904,93053.0,93028.0,0.09396341]
[1767747415074,0.09384904,93050.0,93030.0,0.010754]
[1767747415599,0.09384904,93050.0,93030.0,0.410754]
[1767747415885,7.803e-05,93052.0,93032.0,0.10471641]
[1767747416984,0.09384904,93040.0,93013.0,0.09396341]
[1767747417189,7.803e-05,93039.0,93024.0,0.010754]
[1767747417385,7.803e-05,93039.0,93024.0,0.10471741]
[1767747417590,7.803e-05,93039.0,93024.0,0.09396341]
[1767747417785,7.803e-05,93039.0,93021.0,0.09325008]
[1767747419394,0.010753,93035.0,93017.0,0.0914]
[1767747419783,0.10820023,93035.0,93017.0,0.0914]
[1767747420494,7.803e-05,93039.0,93008.0,0.010756]
[1767747420495,0.09744723,93029.0,93008.0,0.010756]
[1767747420697,0.09752526,93028.0,93008.0,0.010756]
[1767747422189,0.09856805,93026.0,92976.0,0.05]
[1767747422396,0.0914,93031.0,92976.0,0.05]
[1767747422397,0.09856805,93011.0,92980.0,0.19103739]
[1767747422600,0.0914,93010.0,92984.0,0.09690242]
[1767747422787,0.102156,93010.0,92989.0,0.10489297]
[1767747423196,0.010756,93010.0,92989.0,0.10489297]
[1767747423395,0.09157759,93009.0,92989.0,0.10489297]
[1767747423698,0.010756,93005.0,92985.0,0.010759]
[1767747424297,0.10233359,93009.0,92985.0,0.010759]
[1767747424995,0.20090164,93009.0,92985.0,0.010759]
[1767747425196,0.010757,93002.0,92983.0,0.09413497]
[1767747425393,0.010757,93002.0,92981.0,0.010759]
[1767747425897,0.010757,93002.0,92983.0,0.010759]
[1767747426096,0.010756,93006.0,92983.0,0.010759]
[1767747427397,0.10932405,93006.0,92983.0,0.010759]
[1767747428297,0.09856805,93003.0,92983.0,0.010759]
[1767747428598,0.09856805,93002.0,92983.0,0.008259]
[1767747428798,0.09856805,93000.0,92951.0,0.1203]
[1767747429003,0.19826776,92986.0,92964.0,0.010761]
[1767747429189,0.09856805,92983.0,92964.0,0.010761]
[1767747429597,0.09144,92982.0,92961.0,0.010762]
[1767747429793,0.09856805,92979.0,92958.0,0.010762]
[1767747430098,0.09856805,92972.0,92948.0,0.010763]
[1767747430299,0.09856805,92970.0,92951.0,0.010763]
[1767747430494,0.09144,92969.0,92951.0,0.010763]
[1767747430904,0.09856805,92968.0,92951.0,0.010763]
[1767747431093,0.09144,92969.0,92941.0,0.00011033]
[1767747431094,0.19826776,92966.0,92941.0,0.00011033]
[1767747431294,0.09856805,92960.0,92937.0,0.09413497]
[1767747431508,0.09856805,92967.0,92943.0,0.09413497]
[1767747431705,0.09148,92966.0,92943.0,0.09413497]
[1767747431999,0.09148,92966.0,92948.0,0.010763]
[1767747432195,0.09148,92966.0,92943.0,0.09413497]
[1767747432196,0.00013182,92965.0,92944.0,0.010763]
[1767747432398,0.19839958,92965.0,92944.0,0.010763]
[1767747432598,0.09856805,92964.0,92947.0,0.010763]
[1767747433294,0.09856805,92958.0,92948.0,0.010763]
[1767747433494,0.09969971,92969.0,92939.0,0.09690242]
[1767747433794,0.09969971,92982.0,92951.0,0.09413497]
[1767747433993,0.0188611,92982.0,92956.0,0.19103739]
[1767747434205,0.09148,92981.0,92956.0,0.19103739]
[1767747434904,0.01085766,92980.0,92957.0,0.010762]
[1767747435097,0.01076,92973.0,92951.0,0.09148]
[1767747435292,0.09148,92981.0,92951.0,0.09148]
[1767747435293,0.09969971,92971.0,92951.0,0.09148]